[Event "*** Qualifier 4: Titled Tuesday 3|2 Blitz"]
[Site "Chess.com"]
[Date "2017.04.25"]
[Round "7"]
[White "tigra"]
[Black "1stSecond"]
[Result "1-0"]
[WhiteElo "2606"]
[BlackElo "2504"]
[TimeControl "180+2"]
[EndTime "14:33:32 PDT"]
[Termination "tigra won by checkmate"]

1. e4 {[%clk 0:03:02]} 1... c5 {[%clk 0:03:00.3]} 2. Nf3 {[%clk 0:03:03]} 2...
e6 {[%clk 0:03:01.7]} 3. c3 {[%clk 0:03:03.5]} 3... Nf6 {[%clk 0:03:02.2]} 4. e5
{[%clk 0:03:04.6]} 4... Nd5 {[%clk 0:03:02.6]} 5. d4 {[%clk 0:03:06.5]} 5...
cxd4 {[%clk 0:03:03.6]} 6. cxd4 {[%clk 0:03:08]} 6... b6 {[%clk 0:03:04.9]} 7.
Bc4 {[%clk 0:03:08.4]} 7... Ba6 {[%clk 0:03:05.4]} 8. Bxd5 {[%clk 0:03:09.1]}
8... exd5 {[%clk 0:03:06.1]} 9. a3 {[%clk 0:03:10.8]} 9... d6 {[%clk 0:03:04.5]}
10. Nc3 {[%clk 0:03:08.1]} 10... Be7 {[%clk 0:02:55.3]} 11. Qa4+ {[%clk
0:03:06.8]} 11... Qd7 {[%clk 0:02:38.8]} 12. Qxd7+ {[%clk 0:03:03.9]} 12... Kxd7
{[%clk 0:02:38.5]} 13. Nxd5 {[%clk 0:03:03]} 13... Nc6 {[%clk 0:02:36]} 14. Bf4
{[%clk 0:02:54]} 14... Rhe8 {[%clk 0:02:21.9]} 15. Rc1 {[%clk 0:02:28.1]} 15...
Rac8 {[%clk 0:02:12.8]} 16. Kd2 {[%clk 0:02:26.4]} 16... Bf8 {[%clk 0:01:54]}
17. b4 {[%clk 0:02:15.7]} 17... Nxd4 {[%clk 0:01:29.9]} 18. Nxd4 {[%clk
0:02:14]} 18... dxe5 {[%clk 0:01:30.8]} 19. Rxc8 {[%clk 0:02:11]} 19... Bxc8
{[%clk 0:01:32.7]} 20. Nb5 {[%clk 0:01:37.1]} 20... exf4 {[%clk 0:01:16.2]} 21.
Rc1 {[%clk 0:01:37]} 21... Re5 {[%clk 0:00:48.8]} 22. Nbc3 {[%clk 0:01:07.1]}
22... Bb7 {[%clk 0:00:41.4]} 23. Nxf4 {[%clk 0:01:07.8]} 23... a5 {[%clk
0:00:38.4]} 24. Rb1 {[%clk 0:00:52.9]} 24... axb4 {[%clk 0:00:38.5]} 25. axb4
{[%clk 0:00:54.8]} 25... Bd6 {[%clk 0:00:37.3]} 26. g3 {[%clk 0:00:54.5]} 26...
g5 {[%clk 0:00:33.7]} 27. Nfe2 {[%clk 0:00:50.2]} 27... Rf5 {[%clk 0:00:32.2]}
28. Ke1 {[%clk 0:00:51.3]} 28... Be5 {[%clk 0:00:31.6]} 29. Rd1+ {[%clk
0:00:51.1]} 29... Ke8 {[%clk 0:00:25.9]} 30. Rd3 {[%clk 0:00:30]} 30... Rf6
{[%clk 0:00:21.1]} 31. Nd5 {[%clk 0:00:28.8]} 31... Re6 {[%clk 0:00:19.6]} 32.
Kd2 {[%clk 0:00:28.9]} 32... Ba6 {[%clk 0:00:19.7]} 33. Re3 {[%clk 0:00:28.1]}
33... Bc4 {[%clk 0:00:20.2]} 34. Nxb6 {[%clk 0:00:25.7]} 34... Bxe2 {[%clk
0:00:18.7]} 35. Kxe2 {[%clk 0:00:26.4]} 35... Ke7 {[%clk 0:00:17.6]} 36. Nc4
{[%clk 0:00:22.7]} 36... Bd4 {[%clk 0:00:18.6]} 37. Rxe6+ {[%clk 0:00:23.5]}
37... Kxe6 {[%clk 0:00:20.2]} 38. f3 {[%clk 0:00:24]} 38... Kd5 {[%clk
0:00:21.6]} 39. Kd3 {[%clk 0:00:24.9]} 39... Bg1 {[%clk 0:00:20.4]} 40. h3
{[%clk 0:00:26]} 40... f5 {[%clk 0:00:21.6]} 41. Ne3+ {[%clk 0:00:26]} 41... Ke5
{[%clk 0:00:22.6]} 42. b5 {[%clk 0:00:27.1]} 42... f4 {[%clk 0:00:23.6]} 43.
Nc4+ {[%clk 0:00:28.3]} 43... Kd5 {[%clk 0:00:23.5]} 44. g4 {[%clk 0:00:29.6]}
44... h6 {[%clk 0:00:24.2]} 45. b6 {[%clk 0:00:30.4]} 45... Kc6 {[%clk
0:00:25.3]} 46. Ke4 {[%clk 0:00:31.4]} 46... Bxb6 {[%clk 0:00:25]} 47. Ne5+
{[%clk 0:00:23.8]} 47... Kd6 {[%clk 0:00:22]} 48. Nf7+ {[%clk 0:00:24.3]} 48...
Ke6 {[%clk 0:00:23.1]} 49. Nxh6 {[%clk 0:00:26.2]} 49... Bf2 {[%clk 0:00:17.2]}
50. Nf5 {[%clk 0:00:28.1]} 50... Be1 {[%clk 0:00:16.5]} 51. Nd4+ {[%clk
0:00:28.8]} 51... Kf6 {[%clk 0:00:17.9]} 52. Kd5 {[%clk 0:00:29]} 52... Bc3
{[%clk 0:00:17.6]} 53. Nb5 {[%clk 0:00:30]} 53... Be5 {[%clk 0:00:17.7]} 54. Nd6
{[%clk 0:00:31.9]} 54... Bb2 {[%clk 0:00:17.8]} 55. Ne4+ {[%clk 0:00:32.9]}
55... Kg6 {[%clk 0:00:19.1]} 56. Ke6 {[%clk 0:00:34.5]} 56... Ba3 {[%clk
0:00:19.6]} 57. Nd6 {[%clk 0:00:35.9]} 57... Bb2 {[%clk 0:00:20.5]} 58. Nf5
{[%clk 0:00:37.3]} 58... Bc3 {[%clk 0:00:21]} 59. Ne7+ {[%clk 0:00:38.1]} 59...
Kh6 {[%clk 0:00:22.2]} 60. Kf5 {[%clk 0:00:38.1]} 60... Bb4 {[%clk 0:00:23.3]}
61. Nc6 {[%clk 0:00:39.1]} 61... Bc3 {[%clk 0:00:22.1]} 62. Nd8 {[%clk
0:00:38.3]} 62... Kg7 {[%clk 0:00:06.7]} 63. Ne6+ {[%clk 0:00:38.6]} 63... Kh6
{[%clk 0:00:07.8]} 64. Nxg5 {[%clk 0:00:39.8]} 64... Bb4 {[%clk 0:00:09.3]} 65.
Ne6 {[%clk 0:00:41]} 65... Bd6 {[%clk 0:00:09.8]} 66. g5+ {[%clk 0:00:42.1]}
66... Kh7 {[%clk 0:00:11]} 67. g6+ {[%clk 0:00:43]} 67... Kh6 {[%clk 0:00:12.3]}
68. g7 {[%clk 0:00:44.3]} 68... Kh7 {[%clk 0:00:13]} 69. Kf6 {[%clk 0:00:45.1]}
69... Kg8 {[%clk 0:00:14.6]} 70. Kg6 {[%clk 0:00:45.6]} 70... Bb4 {[%clk
0:00:15.9]} 71. h4 {[%clk 0:00:46.6]} 71... Bc3 {[%clk 0:00:17.5]} 72. h5 {[%clk
0:00:47.6]} 72... Bb2 {[%clk 0:00:17.8]} 73. h6 {[%clk 0:00:48.8]} 73... Bxg7
{[%clk 0:00:19.3]} 74. h7+ {[%clk 0:00:49.7]} 74... Kh8 {[%clk 0:00:21]} 75. Nd8
{[%clk 0:00:50.8]} 75... Bh6 {[%clk 0:00:19.1]} 76. Nf7# {[%clk 0:00:52.7]} 1-0

[Event "*** Qualifier 4: Titled Tuesday 3|2 Blitz"]
[Site "Chess.com"]
[Date "2017.04.25"]
[Round "7"]
[White "matiss90"]
[Black "wnstop"]
[Result "1/2-1/2"]
[WhiteElo "2302"]
[BlackElo "2456"]
[TimeControl "180+2"]
[EndTime "14:33:33 PDT"]
[Termination "Game drawn by repetition"]

1. e4 {[%clk 0:03:02]} 1... c5 {[%clk 0:03:00.2]} 2. Nf3 {[%clk 0:03:02.4]} 2...
Nc6 {[%clk 0:03:01.7]} 3. d4 {[%clk 0:03:03.6]} 3... cxd4 {[%clk 0:03:03.3]} 4.
Nxd4 {[%clk 0:03:04.5]} 4... e5 {[%clk 0:03:05]} 5. Ne2 {[%clk 0:02:56]} 5...
Nf6 {[%clk 0:03:04.2]} 6. Nbc3 {[%clk 0:02:56.2]} 6... Bc5 {[%clk 0:03:02.8]} 7.
Ng3 {[%clk 0:02:54.7]} 7... O-O {[%clk 0:03:01.1]} 8. Be2 {[%clk 0:02:48.1]}
8... Nd4 {[%clk 0:03:01.6]} 9. O-O {[%clk 0:02:44.9]} 9... d5 {[%clk 0:03:02.1]}
10. exd5 {[%clk 0:02:45.2]} 10... Nxd5 {[%clk 0:03:02.7]} 11. Nxd5 {[%clk
0:02:45.6]} 11... Qxd5 {[%clk 0:03:03.6]} 12. Bd3 {[%clk 0:02:41]} 12... Rd8
{[%clk 0:02:29.5]} 13. Be4 {[%clk 0:02:25.2]} 13... Qe6 {[%clk 0:02:20.2]} 14.
c3 {[%clk 0:02:13.2]} 14... Nc6 {[%clk 0:02:20.6]} 15. Qc2 {[%clk 0:02:13.6]}
15... g6 {[%clk 0:02:19.5]} 16. Bg5 {[%clk 0:02:09.5]} 16... f6 {[%clk 0:02:13]}
17. Be3 {[%clk 0:02:02.1]} 17... Bf8 {[%clk 0:01:54.9]} 18. f4 {[%clk
0:01:52.2]} 18... f5 {[%clk 0:01:52.2]} 19. Bxc6 {[%clk 0:01:52.4]} 19... bxc6
{[%clk 0:01:49.5]} 20. fxe5 {[%clk 0:01:52.8]} 20... Qxe5 {[%clk 0:01:49.4]} 21.
Rae1 {[%clk 0:01:51.4]} 21... Ba6 {[%clk 0:01:22.8]} 22. Bd4 {[%clk 0:01:41.8]}
22... Qd5 {[%clk 0:01:13.1]} 23. Re5 {[%clk 0:01:40.9]} 23... Qc4 {[%clk
0:01:00.7]} 24. b3 {[%clk 0:01:32.3]} 24... Qd3 {[%clk 0:00:52.8]} 25. Qxd3
{[%clk 0:01:21.8]} 25... Bxd3 {[%clk 0:00:54.7]} 26. Rfe1 {[%clk 0:01:22.3]}
26... Bg7 {[%clk 0:00:48.3]} 27. Re7 {[%clk 0:01:14.2]} 27... Bf8 {[%clk
0:00:35.4]} 28. Rc7 {[%clk 0:01:10.8]} 28... Rdc8 {[%clk 0:00:31.2]} 29. Rd7
{[%clk 0:00:59]} 29... c5 {[%clk 0:00:25]} 30. Bf6 {[%clk 0:00:53.8]} 30... Bb5
{[%clk 0:00:25.9]} 31. Rdd1 {[%clk 0:00:49.6]} 31... Re8 {[%clk 0:00:23.7]} 32.
c4 {[%clk 0:00:47.6]} 32... Bc6 {[%clk 0:00:23.5]} 33. Kf2 {[%clk 0:00:48]}
33... Kf7 {[%clk 0:00:24]} 34. Bc3 {[%clk 0:00:47.3]} 34... Rxe1 {[%clk
0:00:22.3]} 35. Rxe1 {[%clk 0:00:47.1]} 35... Rd8 {[%clk 0:00:22.9]} 36. Re2
{[%clk 0:00:44.3]} 36... Rd1 {[%clk 0:00:21.6]} 37. Re1 {[%clk 0:00:44.3]} 37...
Rd3 {[%clk 0:00:22]} 38. Re3 {[%clk 0:00:42.4]} 38... Rd7 {[%clk 0:00:19.1]} 39.
Ne2 {[%clk 0:00:41.2]} 39... h5 {[%clk 0:00:18.7]} 40. Be5 {[%clk 0:00:37.3]}
40... Rd1 {[%clk 0:00:17.8]} 41. h4 {[%clk 0:00:30.8]} 41... Bh6 {[%clk
0:00:16.5]} 42. Bf4 {[%clk 0:00:30.7]} 42... Bg7 {[%clk 0:00:17.2]} 43. Be5
{[%clk 0:00:31.1]} 43... Bf8 {[%clk 0:00:17.3]} 44. Nf4 {[%clk 0:00:28.7]} 44...
Be4 {[%clk 0:00:17.1]} 45. Re2 {[%clk 0:00:27.4]} 45... Be7 {[%clk 0:00:15.9]}
46. g3 {[%clk 0:00:27.2]} 46... Rh1 {[%clk 0:00:16.6]} 47. Ke3 {[%clk
0:00:22.9]} 47... Rg1 {[%clk 0:00:16.4]} 48. Kf2 {[%clk 0:00:20.5]} 48... Rc1
{[%clk 0:00:16.9]} 49. Rd2 {[%clk 0:00:20.7]} 49... Ke8 {[%clk 0:00:16.8]} 50.
Bd6 {[%clk 0:00:20.8]} 50... Bf6 {[%clk 0:00:15]} 51. Bxc5 {[%clk 0:00:19.9]}
51... a5 {[%clk 0:00:15.2]} 52. Re2 {[%clk 0:00:20.5]} 52... Kd7 {[%clk
0:00:15.1]} 53. Nxg6 {[%clk 0:00:20.9]} 53... Kc6 {[%clk 0:00:15.9]} 54. Be3
{[%clk 0:00:21]} 54... Rh1 {[%clk 0:00:13.4]} 55. Nf4 {[%clk 0:00:20.8]} 55...
Rh2+ {[%clk 0:00:09.8]} 56. Kg1 {[%clk 0:00:21]} 56... Rh1+ {[%clk 0:00:10.3]}
57. Kf2 {[%clk 0:00:21.5]} 57... Rh2+ {[%clk 0:00:11.5]} 58. Kf1 {[%clk
0:00:21.2]} 58... Rh1+ {[%clk 0:00:11.6]} 59. Kf2 {[%clk 0:00:19.6]} 59... Rh2+
{[%clk 0:00:12.1]} 1/2-1/2

[Event "*** Qualifier 4: Titled Tuesday 3|2 Blitz"]
[Site "Chess.com"]
[Date "2017.04.25"]
[Round "7"]
[White "Aygehovit1992"]
[Black "Makalexa"]
[Result "1/2-1/2"]
[WhiteElo "2492"]
[BlackElo "2205"]
[TimeControl "180+2"]
[EndTime "14:33:39 PDT"]
[Termination "Game drawn by repetition"]

1. e4 {[%clk 0:03:02]} 1... e5 {[%clk 0:03:00.8]} 2. Nf3 {[%clk 0:03:03.1]} 2...
Nc6 {[%clk 0:03:02.3]} 3. Bb5 {[%clk 0:03:04.3]} 3... a6 {[%clk 0:03:03.5]} 4.
Ba4 {[%clk 0:03:05]} 4... Nf6 {[%clk 0:03:04.2]} 5. O-O {[%clk 0:03:06.1]} 5...
b5 {[%clk 0:03:05]} 6. Bb3 {[%clk 0:03:07]} 6... Bb7 {[%clk 0:03:05.7]} 7. d3
{[%clk 0:03:03.7]} 7... Be7 {[%clk 0:03:02.6]} 8. Nc3 {[%clk 0:03:04.8]} 8...
O-O {[%clk 0:03:02.2]} 9. Nd5 {[%clk 0:03:05.9]} 9... d6 {[%clk 0:02:47.8]} 10.
Nxe7+ {[%clk 0:03:04.8]} 10... Qxe7 {[%clk 0:02:44.9]} 11. c3 {[%clk 0:03:06.1]}
11... Na5 {[%clk 0:02:45.4]} 12. Bc2 {[%clk 0:03:07.3]} 12... d5 {[%clk
0:02:45.4]} 13. exd5 {[%clk 0:03:06.8]} 13... Nxd5 {[%clk 0:02:44]} 14. Re1
{[%clk 0:03:08]} 14... Qd6 {[%clk 0:02:42]} 15. Nxe5 {[%clk 0:02:51.4]} 15...
Rae8 {[%clk 0:02:37.4]} 16. d4 {[%clk 0:02:52.5]} 16... Nc4 {[%clk 0:02:18.5]}
17. Nxc4 {[%clk 0:02:38.2]} 17... bxc4 {[%clk 0:02:20.4]} 18. Bd2 {[%clk
0:02:38.6]} 18... Nf4 {[%clk 0:02:12.3]} 19. Bxf4 {[%clk 0:02:36.5]} 19... Qxf4
{[%clk 0:02:13.7]} 20. h3 {[%clk 0:01:28.4]} 20... Qg5 {[%clk 0:02:02.1]} 21. f3
{[%clk 0:01:26.1]} 21... g6 {[%clk 0:02:00.6]} 22. Kf1 {[%clk 0:01:14.8]} 22...
Qg3 {[%clk 0:01:56.8]} 23. Qd2 {[%clk 0:01:09.5]} 23... Bxf3 {[%clk 0:01:19.5]}
24. gxf3 {[%clk 0:01:03]} 24... Qxf3+ {[%clk 0:01:20.4]} 25. Kg1 {[%clk
0:00:56.5]} 25... Qg3+ {[%clk 0:01:19.7]} 26. Kh1 {[%clk 0:00:52.3]} 26... Qxh3+
{[%clk 0:01:17.5]} 27. Qh2 {[%clk 0:00:51.3]} 27... Qg4 {[%clk 0:01:12.1]} 28.
Re5 {[%clk 0:00:37.5]} 28... Rxe5 {[%clk 0:01:09.1]} 29. dxe5 {[%clk 0:00:37.8]}
29... f6 {[%clk 0:01:09.1]} 30. Rf1 {[%clk 0:00:34.1]} 30... fxe5 {[%clk
0:00:59.9]} 31. Rxf8+ {[%clk 0:00:34.4]} 31... Kxf8 {[%clk 0:01:00.2]} 32. Qxe5
{[%clk 0:00:31.8]} 32... Qf3+ {[%clk 0:00:58.5]} 33. Kg1 {[%clk 0:00:32.6]}
33... c6 {[%clk 0:00:44.7]} 34. Qh8+ {[%clk 0:00:32.5]} 34... Ke7 {[%clk
0:00:39.7]} 35. Qxh7+ {[%clk 0:00:33.6]} 35... Kd8 {[%clk 0:00:37.1]} 36. Qh8+
{[%clk 0:00:30.8]} 36... Kc7 {[%clk 0:00:35.6]} 37. Qe5+ {[%clk 0:00:31.2]}
37... Kb7 {[%clk 0:00:35.8]} 38. Qe7+ {[%clk 0:00:31.9]} 38... Kb6 {[%clk
0:00:36.1]} 39. Qb4+ {[%clk 0:00:29.3]} 39... Kc7 {[%clk 0:00:36.9]} 40. Qxc4
{[%clk 0:00:21.3]} 40... Qe3+ {[%clk 0:00:37.8]} 41. Kg2 {[%clk 0:00:10.4]}
41... Qd2+ {[%clk 0:00:38.2]} 42. Kf3 {[%clk 0:00:10.5]} 42... Qxc2 {[%clk
0:00:39.1]} 43. b4 {[%clk 0:00:09.1]} 43... Qf5+ {[%clk 0:00:35.7]} 44. Ke3
{[%clk 0:00:09.3]} 44... Kd6 {[%clk 0:00:28.3]} 45. Qxa6 {[%clk 0:00:07.6]}
45... Qe5+ {[%clk 0:00:29.2]} 46. Kd2 {[%clk 0:00:06.1]} 46... g5 {[%clk
0:00:29.8]} 47. Qd3+ {[%clk 0:00:06]} 47... Kc7 {[%clk 0:00:30.1]} 48. Qh7+
{[%clk 0:00:06.8]} 48... Kb6 {[%clk 0:00:29.6]} 49. a4 {[%clk 0:00:07.6]} 49...
Qf4+ {[%clk 0:00:30]} 50. Kc2 {[%clk 0:00:08.7]} 50... g4 {[%clk 0:00:28.7]} 51.
Kb3 {[%clk 0:00:08.4]} 51... Qf3 {[%clk 0:00:21]} 52. a5+ {[%clk 0:00:09.1]}
52... Ka6 {[%clk 0:00:20.8]} 53. Qg6 {[%clk 0:00:04]} 53... Qd5+ {[%clk
0:00:20.6]} 54. Kb2 {[%clk 0:00:04.2]} 54... Qd2+ {[%clk 0:00:20.5]} 55. Kb3
{[%clk 0:00:05.7]} 55... Qd5+ {[%clk 0:00:20.7]} 56. Ka3 {[%clk 0:00:06.9]}
56... Qf3 {[%clk 0:00:19.3]} 57. Qg7 {[%clk 0:00:04.3]} 57... g3 {[%clk
0:00:18.4]} 58. Qd4 {[%clk 0:00:05.3]} 58... Kb7 {[%clk 0:00:14.3]} 59. Qb6+
{[%clk 0:00:06.8]} 59... Kc8 {[%clk 0:00:15]} 60. a6 {[%clk 0:00:08.2]} 60...
Qxc3+ {[%clk 0:00:14.2]} 61. Ka2 {[%clk 0:00:07.3]} 61... Qc2+ {[%clk
0:00:14.9]} 62. Ka3 {[%clk 0:00:08.7]} 62... Qc3+ {[%clk 0:00:15.7]} 63. Ka2
{[%clk 0:00:10.1]} 63... Qc2+ {[%clk 0:00:15.9]} 64. Ka3 {[%clk 0:00:11.6]}
64... Qc3+ {[%clk 0:00:16.4]} 65. Ka2 {[%clk 0:00:13]} 65... Qc2+ {[%clk
0:00:15.5]} 66. Ka3 {[%clk 0:00:14.4]} 66... Qc3+ {[%clk 0:00:16.4]} 67. Ka2
{[%clk 0:00:15.8]} 67... Qc2+ {[%clk 0:00:17.2]} 68. Ka3 {[%clk 0:00:17.3]}
68... Qc3+ {[%clk 0:00:17.8]} 1/2-1/2

[Event "*** Qualifier 4: Titled Tuesday 3|2 Blitz"]
[Site "Chess.com"]
[Date "2017.04.25"]
[Round "7"]
[White "SergeiAza"]
[Black "Fandorine"]
[Result "1-0"]
[WhiteElo "2680"]
[BlackElo "2701"]
[TimeControl "180+2"]
[EndTime "14:33:45 PDT"]
[Termination "SergeiAza won by resignation"]

1. e4 {[%clk 0:03:02]} 1... c6 {[%clk 0:03:00.3]} 2. Nc3 {[%clk 0:02:58.2]} 2...
d5 {[%clk 0:03:01.4]} 3. d4 {[%clk 0:02:59.9]} 3... dxe4 {[%clk 0:03:01.9]} 4.
Nxe4 {[%clk 0:03:01.4]} 4... Bf5 {[%clk 0:03:03.6]} 5. Ng3 {[%clk 0:03:02.3]}
5... Bg6 {[%clk 0:03:05.2]} 6. Nh3 {[%clk 0:03:03.9]} 6... Nf6 {[%clk
0:03:05.6]} 7. Nf4 {[%clk 0:03:03.5]} 7... Nbd7 {[%clk 0:03:07.3]} 8. Bc4 {[%clk
0:03:00.9]} 8... Nb6 {[%clk 0:03:08.4]} 9. Bb3 {[%clk 0:03:00.8]} 9... e6 {[%clk
0:03:05]} 10. O-O {[%clk 0:03:00]} 10... Nbd5 {[%clk 0:03:06.2]} 11. Re1 {[%clk
0:02:47.7]} 11... Nxf4 {[%clk 0:03:01.7]} 12. Bxf4 {[%clk 0:02:47.8]} 12... Be7
{[%clk 0:03:03.4]} 13. h4 {[%clk 0:02:37.1]} 13... h6 {[%clk 0:02:46.1]} 14. h5
{[%clk 0:02:37.5]} 14... Bh7 {[%clk 0:02:47.5]} 15. Be5 {[%clk 0:02:08.8]} 15...
O-O {[%clk 0:02:46.1]} 16. Qf3 {[%clk 0:02:09.6]} 16... Nd7 {[%clk 0:02:38.1]}
17. Ne4 {[%clk 0:01:30.8]} 17... Nxe5 {[%clk 0:02:12.6]} 18. dxe5 {[%clk
0:01:31.5]} 18... Qd4 {[%clk 0:01:33.5]} 19. Nd6 {[%clk 0:01:16.8]} 19... Bxd6
{[%clk 0:01:08.3]} 20. Rad1 {[%clk 0:01:17.1]} 20... Bxe5 {[%clk 0:01:08.1]} 21.
Rxd4 {[%clk 0:01:16.9]} 21... Bxd4 {[%clk 0:01:10]} 22. c3 {[%clk 0:01:16.2]}
22... Bb6 {[%clk 0:01:11.6]} 23. Qe2 {[%clk 0:00:58.1]} 23... Rad8 {[%clk
0:01:11]} 24. Rd1 {[%clk 0:00:55.7]} 24... Rxd1+ {[%clk 0:00:58.6]} 25. Bxd1
{[%clk 0:00:54.8]} 25... Rd8 {[%clk 0:00:55.3]} 26. Bc2 {[%clk 0:00:54.1]} 26...
Bxc2 {[%clk 0:00:56.5]} 27. Qxc2 {[%clk 0:00:55]} 27... Rd5 {[%clk 0:00:58.1]}
28. g4 {[%clk 0:00:53.2]} 28... f5 {[%clk 0:00:37.6]} 29. b4 {[%clk 0:00:42.9]}
29... fxg4 {[%clk 0:00:25.8]} 30. c4 {[%clk 0:00:27.2]} 30... Rf5 {[%clk
0:00:16.9]} 31. c5 {[%clk 0:00:27.8]} 31... Bc7 {[%clk 0:00:18.4]} 32. Qd3
{[%clk 0:00:26.1]} 32... Rd5 {[%clk 0:00:14.8]} 33. Qg6 {[%clk 0:00:24.3]} 33...
g3 {[%clk 0:00:11.4]} 34. Qxe6+ {[%clk 0:00:20.5]} 34... Kh7 {[%clk 0:00:07.1]}
35. Qe4+ {[%clk 0:00:20.6]} 35... Kh8 {[%clk 0:00:05.9]} 36. Qe8+ {[%clk
0:00:20.1]} 36... Kh7 {[%clk 0:00:07.1]} 37. fxg3 {[%clk 0:00:20.2]} 37... Bxg3
{[%clk 0:00:08.3]} 38. Qg6+ {[%clk 0:00:18.5]} 38... Kh8 {[%clk 0:00:09.3]} 39.
Qe8+ {[%clk 0:00:19.1]} 39... Kh7 {[%clk 0:00:10.5]} 40. Kg2 {[%clk 0:00:19.9]}
40... Rg5 {[%clk 0:00:11.1]} 41. Kf3 {[%clk 0:00:18.4]} 41... Be5 {[%clk
0:00:10]} 42. Qf7 {[%clk 0:00:17.8]} 42... b6 {[%clk 0:00:07.4]} 43. cxb6 {[%clk
0:00:12.8]} 43... axb6 {[%clk 0:00:07.8]} 44. a4 {[%clk 0:00:14.3]} 44... Bf6
{[%clk 0:00:05.2]} 45. Qc4 {[%clk 0:00:13.5]} 45... b5 {[%clk 0:00:04.9]} 46.
Qe4+ {[%clk 0:00:13.7]} 46... Kh8 {[%clk 0:00:04.4]} 47. Qxc6 {[%clk 0:00:14.4]}
47... bxa4 {[%clk 0:00:05]} 48. Qxa4 {[%clk 0:00:13.2]} 48... Kh7 {[%clk
0:00:05.3]} 49. Qc2+ {[%clk 0:00:12.6]} 49... Kh8 {[%clk 0:00:05.7]} 50. Qc8+
{[%clk 0:00:12.2]} 50... Kh7 {[%clk 0:00:06.8]} 51. Qe8 {[%clk 0:00:13]} 51...
Be5 {[%clk 0:00:08.1]} 52. b5 {[%clk 0:00:12]} 52... Bg3 {[%clk 0:00:09.2]} 53.
b6 {[%clk 0:00:11.8]} 53... Be5 {[%clk 0:00:09.9]} 54. b7 {[%clk 0:00:12.2]}
54... Bh2 {[%clk 0:00:07.4]} 55. Qe4+ {[%clk 0:00:11.5]} 55... Kh8 {[%clk
0:00:08.7]} 56. Qe2 {[%clk 0:00:11.9]} 56... Bc7 {[%clk 0:00:04.1]} 57. Qe8+
{[%clk 0:00:09.6]} 57... Kh7 {[%clk 0:00:05.5]} 58. Qe4+ {[%clk 0:00:10.2]}
58... Kh8 {[%clk 0:00:07]} 59. Qc2 {[%clk 0:00:09.9]} 59... Bg3 {[%clk
0:00:08.1]} 60. Qc8+ {[%clk 0:00:08.5]} 60... Kh7 {[%clk 0:00:09.2]} 61. Qc2+
{[%clk 0:00:08.9]} 61... Kh8 {[%clk 0:00:10.1]} 62. Qe2 {[%clk 0:00:09.6]} 62...
Kh7 {[%clk 0:00:08.4]} 63. Qe4+ {[%clk 0:00:09.7]} 63... Kh8 {[%clk 0:00:09.3]}
64. Qe8+ {[%clk 0:00:10.4]} 64... Kh7 {[%clk 0:00:10.8]} 65. Qg6+ {[%clk
0:00:10.4]} 1-0